Cogmind - Beta 16.1 @@@ ROGUE MODE // 2026.04.24 @ 09:31:41 Player: Pitifulpancake Result: Destroyed by 60-JNY(R) with Subdweller Laser Performance ------------- Evolutions (0) 0 Regions Visited (2) 400 Robots Destroyed (27) 135 Value Destroyed (601) 601 Prototype IDs (15) 300 Alien Tech Used (0) 0 Bonus (0) 0 TOTAL SCORE: 1436 Bonus ------- None Cogmind --------- Core Integrity 0/250 Matter 275/300 Energy 170/170 System Corruption 3% Temperature Cool (6) Movement Treading (240) Ox1 Location -10/Subcaves Parts ------- > --- POWER (1) -------- Makeshift Power Source > --- PROPULSION (2) --- Light Treads (fused) Light Treads > --- UTILITY (2) ------ High-capacity Storage Unit Gun Armor > --- WEAPON (2+1) ----- Small Laser (+) Barrage Gun Makeshift Spear > --- INVENTORY (20) --- Ion Engine Hover Unit Improved Heat Sink High-capacity Matter Pod (62) Structural Scanner Sensor Array Signal Interpreter Targeting Computer ECM Suite Core Shielding Core Shielding Power Shielding Utility Shielding Makeshift System Restoration Module 1B-0RG's Assimilator Ripper Peak State ------------ > --- POWER ------------ Makeshift Power Source > --- PROPULSION ------- Light Treads Light Treads > --- UTILITY ---------- High-capacity Storage Unit Gun Armor > --- WEAPON ----------- Small Laser Ripper Makeshift Spear > --- INVENTORY -------- Ion Engine Hover Unit Improved Heat Sink High-capacity Matter Pod Structural Scanner Sensor Array Signal Interpreter Targeting Computer ECM Suite Core Shielding Core Shielding Power Shielding Utility Shielding Grenade Launcher 1B-0RG's Assimilator Hammer [Rating: 33] Favorites ----------- Power Light Ion Engine Engine Light Ion Engine Power Core Light Nuclear Core Propulsion Light Treads Treads Light Treads Leg Aluminum Leg Wheel Wheel Utility High-capacity Storage Unit Device Tractor Beam Storage High-capacity Storage Unit Protection Core Shielding Weapon Small Laser Energy Gun Small Laser Ballistic Gun Assault Rifle Launcher Grenade Launcher Special Weapon Mining Laser Impact Weapon Hammer Slashing Weapon Ripper Piercing Weapon Makeshift Spear Build | -11 -10 -10 ------- Run | Yrd Mat Sub Slots Evolved . | . . . Power . | . . . Propulsion . | . . . Utility . | . . . Weapon . | . . . Parts Attached 43 | 10 24 9 Power 6 | 1 3 2 Engine 5 | 1 3 1 Core 1 | . . 1 Reactor . | . . . Propulsion 9 | 4 4 1 Treads 3 | 2 . 1 Leg 2 | . 2 . Wheel 4 | 2 2 . Hover . | . . . Flight . | . . . Utility 13 | 3 9 1 Device 3 | 1 2 . Storage 5 | 2 3 . Processor . | . . . Hackware . | . . . Protection 5 | . 4 1 Artifact . | . . . Weapon 15 | 2 8 5 Energy Gun 6 | 1 5 . Energy Cannon . | . . . Ballistic Gun 2 | 1 . 1 Ballistic Cannon . | . . . Launcher 1 | . . 1 Special Weapon 3 | . 3 . Impact Weapon 1 | . . 1 Slashing Weapon 1 | . . 1 Piercing Weapon 1 | . . 1 Special Melee Weapon . | . . . Unidentified Prototypes . | . . . Parts Lost 7 | . 5 2 Power 1 | . 1 . Propulsion 1 | . 1 . Utility . | . . . Weapon 5 | . 3 2 Highest Loss Streak 2 | . 2 2 To Critical Strikes . | . . . Average Backups 12 | 7 10 16 Power 1 | . 1 1 Propulsion 2 | 5 2 1 Utility 6 | . 4 11 Weapon 1 | . 1 1 Tool/Special . | . . . Unused Backups 21 | 2 5 14 Power 2 | . 1 1 Propulsion 7 | 2 3 2 Utility 11 | . 1 10 Weapon . | . . . Tool/Special 1 | . . 1 Average Slot Usage (%) 98 | . 98 99 Engine 11 | . 13 7 Core 2 | . . 4 Treads 21 | . 18 25 Leg 1 | . 3 . Wheel 3 | . 5 . Device 2 | . 2 2 Storage 14 | . 15 12 Protection 9 | . 9 9 Energy Gun 12 | . 13 11 Ballistic Gun 5 | . 6 3 Special Weapon 5 | . 7 3 Impact Weapon 1 | . . 4 Slashing Weapon 1 | . . 4 Piercing Weapon 2 | . . 5 Peak Build Rating 33 | 7 9 33 Average Rating 13 | 6 7 26 On Entrance 5 | . 7 9 Avg Prop Armor Cover (%) . | . . . Naked Turns . | . . . Heaviest Build 55 | 16 47 55 Greatest Support 40 | 40 40 40 Greatest Overweight (x) 1 | . 1 1 Average Overweight (x) . | . . 1 Largest Inventory Capacity 20 | 8 20 20 Average Capacity 14 | 7 12 20 Most Carried 20 | 8 20 20 Average Carried 13 | 7 10 19 Final Capacity 20 | 8 20 20 Final Carried 20 | 8 20 20 Class Distribution -------------------- 80% | Mutant 16% | Scavenger-Mutant Dominant Class ---------------- Mutant | -10/Materials Mutant | -10/Subcaves Resources | -11 -10 -10 ----------- Run | Yrd Mat Sub Matter Collected 1129 | 335 514 280 Remotely 8 | 8 . . Salvage Created 872 | 142 558 172 Parts 52 | 7 40 5 Haulers Intercepted 1 | . 1 . Recyclers Shooed . | . . . Parts Field Recycled . | . . . Retrieved Matter . | . . . Parts Self-Destructed 7 | . . 7 Prevented . | . . . Parts Restored . | . . . Kills | -11 -10 -10 ------- Run | Yrd Mat Sub Combat Hostiles Destroyed 16 | . 12 4 Melee 3 | . . 3 Guns 13 | . 12 1 Classes Destroyed 9 | 3 5 1 Worker 3 | 3 . . Builder 2 | . 2 . Tunneler 3 | 2 1 . Hauler 1 | . 1 . Recycler 1 | 1 . . Watcher 1 | . 1 . Swarmer 3 | . 3 . Grunt 11 | . 9 2 Subdweller 2 | . . 2 Best Kill Streak 4 | 3 4 1 Combat Bots Only 2 | . 2 1 Max Kills in Single Turn 1 | 1 1 1 Gunslinging . | . . . Exploded . | . . . Melee 1 | . . 1 Uniques/NPCs Destroyed . | . . . Combat | -11 -10 -10 -------- Run | Yrd Mat Sub Hostile Shots Fired 163 | . 127 36 Missed 36 | . 29 7 Hits 127 | . 98 29 Projectile 127 | . 98 29 Damage Taken 1733 | . 1210 523 Core 263 | . 163 100 Absorbed by Shields . | . . . Redirected to Shielding 4 | . 4 . Regen/Repaired (Parts) 99 | . 99 . Core Remaining (%) 100 | 100 . . Volleys Fired 165 | 22 112 31 Largest 2 | 2 2 2 Hottest 100 | 70 100 100 Shots Fired 240 | 31 172 37 Gun 188 | 31 130 27 Cannon . | . . . Launcher . | . . . Special 52 | . 42 10 Kinetic 65 | 9 52 4 Thermal 160 | 22 105 33 Explosive . | . . . Electromagnetic 15 | . 15 . Robot Hit Streak 13 | 4 13 7 Robot Miss Streak 14 | 2 14 3 Penetration Max . | . . . Secondary Targets 3 | . 3 . Max Gunslinging Chain 1 | . 1 . Shots Hit Robots 111 | 16 74 21 Core Hits 44 | 7 30 7 Critical Kills . | . . . Critical Parts Destroyed . | . . . Critical Strikes 3 | . 3 . Burn 2 | . 2 . Corrupt 1 | . 1 . Melee Attacks 17 | . . 17 Impact 4 | . . 4 Slashing 4 | . . 4 Piercing 9 | . . 9 Sneak Attacks . | . . . Combat Hostiles . | . . . Follow-up Attacks . | . . . Damage Inflicted 1521 | 196 932 393 Guns 1165 | 195 812 158 Cannons . | . . . Explosions 24 | . 24 . Melee 235 | . . 235 Ramming 1 | 1 . . Kinetic 447 | 48 372 27 Thermal 749 | 147 471 131 Explosive . | . . . Electromagnetic 89 | . 89 . Impact 23 | . . 23 Slashing 159 | . . 159 Piercing 53 | . . 53 Highest Corruption 3 | 2 3 3 Average Corruption 2 | 2 2 3 Corruption Purged . | . . . Corruption Blocked . | . . . Effects 52 | 4 24 24 Message Errors 12 | 1 3 8 Matter Fused 16 | . 9 7 Heat Flow Errors 8 | . 5 3 Energy Discharges 4 | 2 2 . Parts Fused 2 | . 1 1 Data Loss (minor) 6 | . 4 2 Data Loss (major) 1 | 1 . . Misfires 2 | . . 2 Alerts 1 | . . 1 Overload Shots . | . . . Overflow Damage . | . . . Projectiles . | . . . Explosions . | . . . Melee . | . . . Knockbacks . | . . . Impact . | . . . Kinetic . | . . . Secondary . | . . . Self-Inflicted Damage 39 | . 39 . Shots 1 | . 1 . Rammed 1 | 1 . . Targets Rammed 1 | 1 . . Kicked . | . . . Crushed . | . . . Highest Temperature 284 | 84 284 125 Average Temperature 67 | 30 73 50 Received Heat Transfer 711 | . 501 210 Effects 1 | . 1 . Energy Bleed 1 | . 1 . Siege Activations . | . . . Martial Activations . | . . . Shielding Activations . | . . . Robots Disrupted . | . . . Combat Hostiles . | . . . Robots Corrupted . | . . . Combat Hostiles . | . . . Parts Fried . | . . . Impact Corruptions . | . . . Robots Melted . | . . . Combat Hostiles . | . . . Parts Melted . | . . . Heat Transferred 2134 | 444 1390 300 Parts Sabotaged . | . . . Parts Stolen . | . . . Parts Stripped . | . . . Power Chain Reactions 1 | . 1 . Alert | -11 -10 -10 ------- Run | Yrd Mat Sub Maximum Alert Level . | . . . Low Security (%) 100 | 100 100 . Level 1 . | . . . Level 2 . | . . . Level 3 . | . . . Level 4 . | . . . Level 5 . | . . . High Security . | . . . Max Security . | . . . Peak Influence 85 | 10 85 . Initial . | . . . Average 12 | . 18 . Influence Increases 559 | 30 479 50 Destroy 0b10 Robot/C 280 | . 240 40 Destroy 0b10 Robot/NC 55 | 30 25 . Destroy Leader 64 | . 54 10 Successful Hack 4 | . 4 . Disable Machine 30 | . 30 . Destroy Structure 36 | . 36 . Lose Combat Pursuer 90 | . 90 . Influence Decreases 559 | 30 479 50 Time Decay 499 | 30 429 40 Lost Part 60 | . 50 10 Squads Dispatched 2 | . 2 . Investigation 1 | . 1 . Extermination . | . . . Reinforcement 1 | . 1 . Assault . | . . . Garrison . | . . . Intercept . | . . . Searches Triggered . | . . . Construction Impeded . | . . . Haulers Reinforced . | . . . Active Scanning Responses . | . . . Cargo Convoy Interrupts . | . . . Stealth | -11 -10 -10 --------- Run | Yrd Mat Sub Distress Signals 1 | . 1 . Communications Jammed . | . . . Distress Signals . | . . . Times Spotted 33 | . 28 5 Peak Tracking Total 4 | . 4 2 Tactical Retreats 3 | . 3 . Traps | -11 -10 -10 ------- Run | Yrd Mat Sub Traps Triggered 2 | . 2 . Indirectly . | . . . Trap Hack Attempts . | . . . Triggered . | . . . Disarmed . | . . . Reprogrammed . | . . . Reused . | . . . Traps Extracted . | . . . Installed . | . . . Triggered . | . . . Machines | -11 -10 -10 ---------- Run | Yrd Mat Sub Machines Disabled 3 | . 2 1 Max in Single Turn 1 | . 1 1 Machines Repaired . | . . . Machines Dismantled . | . . . Machines Sabotaged . | . . . Overloaded Fab Kills . | . . . Hacking | -11 -10 -10 --------- Run | Yrd Mat Sub Machines Accessed 11 | . 9 2 Terminals 6 | . 6 . Fabricators . | . . . Repair Stations 1 | . 1 . Recycling Units 2 | . 2 . Scanalyzers . | . . . Garrison Access . | . . . Total Hacks 44 | . 30 14 Successful 31 | . 17 14 Failed 13 | . 13 . Catastrophic 2 | . 2 . Database Lockouts . | . . . Manual 17 | . 11 6 Terminals 19 | . 19 . Fabricators . | . . . Repair Stations 5 | . 5 . Recycling Units 6 | . 6 . Scanalyzers . | . . . Garrison Access . | . . . Terminal Hacks 19 | . 5 14 Record 13 | . . 13 Prototype ID Bank 1 | . 1 . Branch Access Points 1 | . 1 . Emergency Access Points 1 | . 1 . Alert Level 2 | . 2 . Proto ID Catalog 1 | . . 1 Fabricator Hacks . | . . . Repair Station Hacks 4 | . 4 . Scan Component 2 | . 2 . Repair 2 | . 2 . Recycling Unit Hacks 4 | . 4 . Process 2 | . 2 . Report Inventory 2 | . 2 . Scanalyzer . | . . . Garrison Access Hacks . | . . . Unauthorized Hacks 4 | . 4 . Terminals 4 | . 4 . Botnet 4 | . 4 . Fabricators . | . . . Repair Stations . | . . . Recycling Units . | . . . Scanalyzers . | . . . Garrison Access . | . . . Data Cores Recovered . | . . . Used . | . . . Hacking Detections 9 | . 9 . Full Trace Events 3 | . 3 . Feedback Events 1 | . 1 . Corruption 1 | . 1 . Feedback Blocked . | . . . Robot Schematics Acquired . | . . . Robots Built . | . . . Authchips . | . . . Time . | . . . Total Robot Build Rating . | . . . Part Schematics Acquired . | . . . Parts Built . | . . . Authchips . | . . . Time . | . . . Total Part Build Rating . | . . . Part Studies Acquired . | . . . Parts Repaired 2 | . 2 . Time 52 | . 52 . Parts Recycled . | . . . Recycled Matter 155 | . 155 . Retrieved Matter . | . . . Retrieved Components . | . . . Parts Scanalyzed . | . . . Part Schematics Acquired . | . . . Parts Damaged . | . . . Bothacking | -11 -10 -10 ------------ Run | Yrd Mat Sub Used RIF Installer . | . . . Robots Hacked . | . . . Non-combat . | . . . Combat . | . . . Robot Hacks Applied . | . . . Relay Couplers Released . | . . . Fabnet Peak Effective % . | . . . Robots Rewired . | . . . Allies Hacked . | . . . Hacks Repelled . | . . . Allies | -11 -10 -10 -------- Run | Yrd Mat Sub Total Allies . | . . . Largest Group . | . . . Highest-Rated Group . | . . . Highest-Rated Ally . | . . . Total Orders . | . . . Ally Attacks . | . . . Total Damage . | . . . Kills . | . . . Allies Corrupted . | . . . Allies Melted . | . . . Intel | -11 -10 -10 ------- Run | Yrd Mat Sub Active Infowar (turns) 619 | . 371 248 Terrain 284 | . 36 248 Structural 335 | . 335 . Robot Analysis Total . | . . . Derelict Logs Recovered . | . . . Drone Launches . | . . . Drone Recoveries . | . . . Exploration | -11 -10 -10 ------------- Run | Yrd Mat Sub Turns Passed 4122 | 823 1907 1392 Spaces Moved 1790 | 406 877 507 Core 5 | 5 . . Treads 1084 | 51 526 507 Legs 110 | . 110 . Wheels 591 | 350 241 . Hover . | . . . Flight . | . . . Fastest Speed 50 | 50 80 240 Average Speed 165 | 89 158 240 Slowest Speed 240 | 160 240 240 Overloaded Moves . | . . . Propulsion Burnouts . | . . . Robots Hopped . | . . . Potential Cave-ins 2 | . 2 . Cave-ins Triggered . | . . . Exploration Rate (%) 50 | 21 97 34 Regions Visited 2 Branch Regions 1 Pre-discovered Areas 1 | . . 1 Known Exits Taken . | . . . Unknown Exits Taken 2 | 1 1 . Scrap Searched . | . . . Spaces Dug 29 | . 29 . Terrain Destroyed 40 | . 40 . Melee . | . . . Projectile 36 | . 36 . AOE 4 | . 4 . Terrain Rammed . | . . . Walls Destroyed . | . . . Machines Disabled . | . . . Actions | -11 -10 -10 --------- Run | Yrd Mat Sub Total 2583 | 831 1142 610 Wait 463 | 377 74 12 Move 1788 | 405 876 507 Hop . | . . . Pick Up 43 | 13 24 6 Fast Attach 27 | 5 11 11 Attach 8 | 2 3 3 Detach 2 | . 1 1 Swap 25 | 3 18 4 Drop 45 | 3 23 19 Fire 165 | 22 112 31 Melee 16 | . . 16 Ram 1 | 1 . . Kick . | . . . Crush . | . . . Escape Stasis . | . . . Rewire . | . . . Trap . | . . . Miscellaneous . | . . . Route ------- -11/Scrapyard -10/Materials (discovered 5 exits: [*Mat x3] / *Min / *Sub) -10/Subcaves History --------- Turn | Location | Event 8 | -11/Scrapyard | Discovered new exit (range 16) 824 | -11/Scrapyard | Entered Materials 825 | -10/Materials | Build established: Mutant 1002 | -10/Materials | Repaired Assault Rifle 1029 | -10/Materials | Repaired Med. Laser 1118 | -10/Materials | Discovered new exit (range 10) 1281 | -10/Materials | Discovered new exit (range 8) 1432 | -10/Materials | Core integrity fell below 50% 1673 | -10/Materials | Discovered new exit (range 8) 2095 | -10/Materials | Discovered new exit (range 5) 2380 | -10/Materials | Identified exit to Mines 2731 | -10/Materials | Entered Subcaves 2962 | -10/Subcaves | Visited 4L-MR0's lab 2985 | -10/Subcaves | Found Prototype Special Melee Weapon 3002 | -10/Subcaves | Found Gun Armor 3004 | -10/Subcaves | Attached Gun Armor, gained temporary slots: Weapon x2 3357 | -10/Subcaves | Core integrity fell below 20% 3414 | -10/Subcaves | Visited Clippyterm 3422 | -10/Subcaves | Learned location of Section 7 (-2) 3422 | -10/Subcaves | Learned Factory fabricator intel 3743 | -10/Subcaves | Shifting Twisted Machinery released Barrage Gun 3839 | -10/Subcaves | Build established: Scavenger-Mutant 3871 | -10/Subcaves | Shifting Twisted Machinery released Mak. System Restoration Module 4084 | -10/Subcaves | Shifting Twisted Machinery released Shrapnel Trap 4123 | -10/Subcaves | Destroyed by 60-JNY(R) with Subdweller Laser Last Messages --------------- Machinery. 03769_ System corrupted: FCS attempts to trigger Sml. Laser. 03769_ System corrupted: Sml. Laser misfires. 03778_ Dropped Ripper. 03778_ Acquired Barrage Gun. 03780_ Dropped Hammer. 03782_ Acquired Ripper. Mak. System Restoration Module falls loose from the Twisted Machinery. 03890_ Dropped Grenade Launcher. 03891_ Acquired Mak. System Restoration Module. 03912_ XL9UPJQD6IH&R49S3DXKYDV7XM